[Event "51st Rilton Cup 2023-24"]
[Site "Stockholm"]
[Date "2024.01.02"]
[Round "6.4"]
[White "Prraneeth Vuppala"]
[Black "Moksh Amit Doshi"]
[Result "1/2-1/2"]
[ECO "C84"]
[WhiteElo "2515"]
[BlackElo "2366"]
[Annotator "TA"]
[PlyCount "141"]
[EventDate "2023.12.27"]
[EventType "swiss"]
[EventCountry "SWE"]
[SourceTitle "playchess.com"]
[Source "ChessBase"]
[SourceQuality "1"]
[TimeControl "40/5400+30:1800+30"]

{[%evp 13,141,6,14,0,9,7,28,15,28,20,21,18,25,26,29,23,34,17,18,0,0,0,0,0,0,-47,-48,-141,-127,-119,-107,-129,-110,-124,-91,-125,-115,-168,-139,-149,-108,-93,-116,-162,-110,-137,-80,-83,-83,-148,-147,-146,-147,-142,-119,-114,-108,-116,-108,-112,-104,-110,-108,-110,-105,-102,-75,-113,-76,-68,-75,-75,-73,-76,-72,-70,-73,-68,-60,-83,-87,-81,-16,-55,-14,-18,-20,-18,0,0,0,0,0,-9,-9,-9,-10,-13,0,0,0,0,0,0,0,0,0,0,0,0,0,0,8,8,8,8,22,-69,-68,-69,-64,-70,-70,-141,-32,-70,-70,-69,-69,-69]} 1. e4 {[%emt 0:00:03]} e5 {[%emt 0:08:37]} 2. Nf3 {[%emt 0:00:15]} Nc6 {[%emt 0:00:09]} 3. Bb5 {[%emt 0:00:04]} a6 {[%emt 0:00:08]} 4. Ba4 {[%emt 0:00:03]} Nf6 {[%emt 0:00:09]} 5. O-O {[%emt 0:00:06]} Be7 {[%emt 0:00:05]} 6. d3 {[%emt 0:00:14]} b5 {[%emt 0:00:09]} 7. Bb3 {[%emt 0:00:05]} d6 {[%emt 0:00:08]} 8. Bd2 {[%emt 0:01:16]} O-O {[%emt 0:01:55]} 9. h3 {[%emt 0:00:14]} h6 {[%emt 0:03:13]} 10. Re1 {[%emt 0:02:55] White has an edge.} Re8 {[%emt 0:01:55]} 11. a4 {[%emt 0:07:19] And now axb5 would win.} Bd7 {[%emt 0:03:18]} 12. axb5 {[%emt 0:05:17]} axb5 {[%emt 0:00:10]} 13. Nc3 {[%emt 0:00:06]} Rb8 {[%emt 0:05:59]} 14. Nd5 {[%emt 0:09:16]} Bf8 {[%emt 0:03:24]} 15. c3 {[%emt 0:08:23]} Nxd5 {[%emt 0:04:42][%mdl 64] [#] Remove Defender} 16. exd5 {[%emt 0:07:13]} (16. Bxd5 $5 {[%cal Rd3d4]} Ne7 17. Bb3 $14) 16... Ne7 {[%emt 0:00:51]} 17. d4 {[%emt 0:00:22]} Ng6 {[%emt 0:03:26]} 18. Bc2 {[%emt 0:16:35]} f5 {[%emt 0:09:58]} 19. dxe5 {[%emt 0:12:51]} (19. Nh2 $11 {feels stronger.}) 19... dxe5 $15 {[%emt 0:00:48]} 20. d6 {[%emt 0:04:09]} Bxd6 $17 {[%emt 0:09:01]} 21. Bb3+ {[%emt 0:00:17]} Kf8 {[%emt 0:01:52]} 22. Ra6 {[%emt 0:05:43][%cal Od2g5]} Qc8 {[%emt 0:08:26]} 23. Ra7 {[%emt 0:04:17]} Be6 {[%emt 0:04:47]} 24. Bxe6 {[%emt 0:03:44]} Qxe6 {[%emt 0:02:27]} 25. Nd4 {[%emt 0:00:12]} (25. Qe2 $17 {was called for.}) 25... Qd7 {[%emt 0:02:48]} 26. Nb3 {[%emt 0:00:24]} Ra8 {[%emt 0:01:56]} 27. Rxa8 {[%emt 0:00:41]} Rxa8 {[%emt 0:00:15]} 28. Qf3 {[%emt 0:00:07]} (28. Be3 $17) 28... Re8 {[%emt 0:00:59]} ({Black should play} 28... Ra2 $19 29. Rb1 Ne7) 29. Qb7 {[%emt 0:01:08]} f4 {[%emt 0:07:54]} (29... Kg8 $142 30. Ra1 Rd8) 30. Qe4 {[%emt 0:03:40]} Nh4 {[%emt 0:04:17]} 31. f3 {[%emt 0:02:15]} (31. c4 $142) 31... Qf7 {[%emt 0:05:51]} 32. Na5 {[%emt 0:01:00]} Bc5+ {[%emt 0:00:21]} 33. Kh2 {[%emt 0:00:20]} Qg6 {[%emt 0:01:30]} 34. Qxg6 {[%emt 0:02:12]} Nxg6 {[%emt 0:00:05]} 35. c4 {[%emt 0:00:14]} bxc4 {[%emt 0:03:39]} 36. Nxc4 {[%emt 0:00:15]} Kf7 {[%emt 0:00:32]} 37. Rc1 {[%emt 0:01:47]} e4 {[%emt 0:00:44]} 38. fxe4 {[%emt 0:00:44]} Rxe4 {[%emt 0:00:06]} 39. Ba5 {[%emt 0:00:04]} Bd6 {[%emt 0:01:39]} 40. Kh1 {[%emt 0:01:40]} Ke6 {[%emt 0:00:42]} 41. Nd2 {[%emt 0:09:37][%csl LRc7,LRe4]} Re2 {[%emt 0:01:25]} 42. Nf3 {[%emt 0:00:08] Dodges Nh4} Kd7 {[%emt 0:01:33]} 43. Bc3 {[%emt 0:03:41]} Ne5 {[%emt 0:04:34]} 44. Nd4 {[%emt 0:04:18]} Re4 {[%emt 0:02:43]} 45. Nf5 {[%emt 0:00:45]} Nd3 {[%emt 0:10:13]} 46. Rf1 {[%emt 0:00:46]} g6 {[%emt 0:02:18]} 47. Nxh6 {[%emt 0:01:57]} Re2 {[%emt 0:01:42]} (47... Ke7 $17) 48. Nf7 $1 $11 {[%emt 0:01:56]} Ke6 {[%emt 0:00:27]} 49. Nxd6 {[%emt 0:01:24]} cxd6 {[%emt 0:00:18][%mdl 4096] Endgame KRB-KRN} 50. Kg1 {[%emt 0:04:32]} Kf5 {[%emt 0:02:04][%cal Oe2c2]} ({But not} 50... Nxb2 51. Rxf4 Nd1 52. Bh8) 51. Rd1 {[%emt 0:03:30]} Ke4 {[%emt 0:00:23]} 52. b4 {[%emt 0:00:17]} Rc2 {[%emt 0:01:14]} 53. Bg7 {[%emt 0:00:47]} Rc7 {[%emt 0:02:52]} (53... Nxb4 $2 54. Rd4+ (54. Rxd6 Rc1+ 55. Kh2 Nd3 $11) 54... Kf5 55. Rxb4 $18) 54. Bf8 {[%emt 0:00:49]} d5 {[%emt 0:00:04]} 55. b5 {[%emt 0:00:19]} d4 {[%emt 0:01:27]} 56. Rb1 {[%emt 0:01:58]} Rb7 {[%emt 0:00:26]} 57. b6 {[%emt 0:01:11]} Ne5 {[%emt 0:01:25]} 58. Bd6 {[%emt 0:01:12]} Nc4 {[%emt 0:01:22][%csl LRb6,LRd6]} 59. Bc7 {[%emt 0:00:17]} d3 {[%emt 0:00:38]} 60. Kf2 {[%emt 0:00:31]} g5 {[%emt 0:01:25]} 61. Rb5 {[%emt 0:02:58]} Ne3 {[%emt 0:00:50]} 62. Ke1 {[%emt 0:00:14]} Nxg2+ {[%emt 0:00:38]} 63. Kd2 {[%emt 0:00:05] [#] Strongly threatening Kc3.} Ne3 $132 {[%emt 0:01:35][%mdl 2048] ...Nc4+ is the strong threat. Black puts up resistance} 64. Rb4+ {[%emt 0:01:12]} Kf3 {[%emt 0:00:34] aiming for ...Nd5.} 65. Ra4 {[%emt 0:00:29]} (65. Rd4 $11) 65... Nd5 $15 {[%emt 0:00:18][%csl LRb6,LRc7]} 66. Bd8 $1 {[%emt 0:00:13]} Kg2 {[%emt 0:01:00]} ({Don't play} 66... Nxb6 67. Rb4 $11) 67. Ra5 {[%emt 0:00:50]} Nxb6 {[%emt 0:00:47] Hoping for ...Nc4+.} 68. Rxg5+ {[%emt 0:00:09]} ({Only move:} 68. Kxd3 $15 g4 69. hxg4) 68... Kxh3 {[%emt 0:00:04]} (68... Kf3 $1 $17 {[%cal Rf3e4]} 69. Rg8 Rb8 70. Kxd3 Nd7) 69. Kxd3 {[%emt 0:00:39] Black is slightly better.} Rd7+ $1 {[%emt 0:00:24]} 70. Ke4 {[%emt 0:00:04]} Rxd8 {[%emt 0:00:05]} 71. Kxf4 {[%emt 0:00:04] And White is the lucky defender.   Weighted Error Value: White=0.09 (flawless) /Black=0.10 (very precise)} 1/2-1/2

[Event "51st Rilton Cup 2023-24"]
[Site "Stockholm"]
[Date "2024.01.02"]
[Round "6.5"]
[White "Sivuk, Vitaly"]
[Black "Jarmula, Lukasz"]
[Result "1-0"]
[ECO "A20"]
[WhiteElo "2490"]
[BlackElo "2425"]
[Annotator "TA"]
[PlyCount "67"]
[EventDate "2023.12.27"]
[EventType "swiss"]
[EventCountry "SWE"]
[SourceTitle "playchess.com"]
[Source "ChessBase"]
[SourceQuality "1"]
[TimeControl "40/5400+30:1800+30"]

{[%evp 9,67,4,25,0,2,0,128,115,124,120,166,150,197,155,160,150,157,152,156,159,152,150,168,150,167,127,168,149,193,186,200,167,204,175,253,191,381,312,372,217,375,314,520,497,589,396,397,398,400,400,394,375,355,385,378,371,343,319,421,411]} 1. c4 {[%emt 0:03:52]} e5 {[%emt 0:01:13]} 2. d3 {[%emt 0:00:08]} Bb4+ {[%emt 0:05:55]} 3. Nd2 {[%emt 0:00:10]} f5 {[%emt 0:02:31]} 4. Ngf3 {[%emt 0:01:30]} Nc6 {[%emt 0:01:18]} 5. e3 {[%emt 0:12:20]} Nf6 {[%emt 0:01:32] [#]} 6. Be2 $146 {[%emt 0:01:48] A20: English Opening: 1...e5.} ({Predecessor:} 6. a3 Bxd2+ 7. Qxd2 d5 8. cxd5 Qxd5 9. Qc2 Be6 10. Bd2 Rd8 11. Bc3 O-O 12. Rd1 {½-½ Toth,S (2042)-Merenyi,G (2117) HUN-chT2 Maroczy 0506 2005 (5)}) 6... O-O {[%emt 0:12:29]} 7. O-O {[%emt 0:00:35]} e4 {[%emt 0:03:57]} (7... Qe8 $11) 8. dxe4 $16 {[%emt 0:00:45] White is better.} fxe4 {[%emt 0:08:21]} 9. Nxe4 {[%emt 0:00:54]} d6 {[%emt 0:01:58]} (9... Nxe4 $16 10. Qd5+ Kh8) 10. a3 {[%emt 0:02:34]} Nxe4 {[%emt 0:05:52]} (10... Bc5 $16 11. Bd3 Nxe4) 11. Qd5+ {[%emt 0:00:36]} Kh8 {[%emt 0:00:06] [#] aiming for ...Nf6.} 12. Qxe4 {[%emt 0:00:10]} Bf5 {[%emt 0:00:21]} 13. Qh4 {[%emt 0:01:41]} Bc5 {[%emt 0:01:07]} 14. b4 {[%emt 0:00:40]} Bb6 {[%emt 0:00:10]} 15. Qxd8 {[%emt 0:01:40]} Rfxd8 {[%emt 0:02:46]} 16. Bb2 {[%emt 0:00:27]} a5 {[%emt 0:00:06]} 17. Bc3 {[%emt 0:01:44]} Bg4 {[%emt 0:00:47]} 18. Rfd1 {[%emt 0:01:09]} Rf8 {[%emt 0:01:52]} 19. h3 {[%emt 0:03:56]} Bh5 {[%emt 0:02:28]} 20. Kf1 {[%emt 0:05:46]} Rae8 {[%emt 0:06:15]} 21. Rac1 {[%emt 0:02:47][%cal Ba1c1,Bc1b1,Bb1g1][%mdl 32]} Bxf3 {[%emt 0:11:01]} (21... axb4 $142 22. axb4 Bg6) 22. Bxf3 {[%emt 0:00:20] Hoping for bxa5.} Ne5 $2 {[%emt 0:00:19]} (22... axb4 23. axb4 Ne5) 23. bxa5 {[%emt 0:18:11]} ({Not} 23. Bxb7 Bxe3 24. Rc2 axb4 25. Bxb4 c5 $16) 23... Bc5 {[%emt 0:01:47]} 24. Ke2 {[%emt 0:01:18]} (24. Bxb7 $142 Bxe3 25. Rc2) 24... Bxa3 $2 {[%emt 0:19:52]} (24... c6 25. Bxe5 dxe5) 25. Rb1 {[%emt 0:01:13]} Nxf3 $2 {[%emt 0:00:30]} (25... b6 26. Ra1 Nxf3 27. Rxa3 Ng5 28. axb6 cxb6) 26. gxf3 $18 {[%emt 0:00:10]} Rb8 {[%emt 0:00:09]} 27. Bd4 {[%emt 0:02:01] [#] Rg1 is the strong threat.} Bc5 {[%emt 0:01:23]} 28. Bxc5 {[%emt 0:00:47]} dxc5 {[%emt 0:00:06][%mdl 4096] Endgame KRR-KRR} 29. Rd7 {[%emt 0:01:30]} Rfc8 {[%emt 0:03:26]} 30. Rg1 {[%emt 0:01:49]} g6 {[%emt 0:00:06]} 31. Rb1 {[%emt 0:00:57]} b6 {[%emt 0:03:58]} 32. axb6 {[%emt 0:00:08]} ({Less strong is} 32. a6 Ra8 33. Ra1 Ra7 $18) 32... cxb6 {[%emt 0:00:13]} 33. f4 {[%emt 0:00:14]} Rc6 {[%emt 0:00:30]} 34. Ra1 {[%emt 0:00:37] Weighted Error Value: White=0.28 (precise) /Black=0.53} 1-0

[Event "51st Rilton Cup 2023-24"]
[Site "Stockholm"]
[Date "2024.01.02"]
[Round "6.6"]
[White "Sokolovsky, Yahli"]
[Black "Borgaonkar Akshay"]
[Result "1-0"]
[ECO "B19"]
[WhiteElo "2443"]
[BlackElo "2206"]
[Annotator "RC"]
[PlyCount "91"]
[EventDate "2023.12.27"]
[EventType "swiss"]
[EventCountry "SWE"]
[SourceTitle "playchess.com"]
[Source "ChessBase"]
[SourceQuality "1"]
[TimeControl "40/5400+30:1800+30"]

1. e4 {[%emt 0:00:03]} c6 {[%emt 0:00:03]} 2. d4 {[%emt 0:00:19]} d5 {[%emt 0:00:05]} 3. Nd2 {[%emt 0:00:03]} dxe4 {[%emt 0:00:12]} 4. Nxe4 {[%emt 0:00:08]} Bf5 {[%emt 0:00:11]} 5. Ng3 {[%emt 0:00:08]} Bg6 {[%emt 0:00:08]} 6. h4 {[%emt 0:00:46]} h6 {[%emt 0:00:06]} 7. Nf3 {[%emt 0:00:04]} Nd7 {[%emt 0:00:09]} 8. Bd3 {[%emt 0:00:14]} Bxd3 {[%emt 0:00:09]} 9. Qxd3 {[%emt 0:00:04]} e6 {[%emt 0:00:31]} 10. Bf4 {[%emt 0:00:17]} Ngf6 {[%emt 0:01:23]} 11. O-O-O {[%emt 0:00:23]} Be7 {[%emt 0:00:58]} 12. Qe2 {[%emt 0:00:32]} O-O {[%emt 0:02:23]} 13. Ne5 {[%emt 0:00:23]} Qa5 {[%emt 0:00:39]} 14. Kb1 {[%emt 0:00:55]} Rad8 {[%emt 0:01:21]} 15. Rd3 {[%emt 0:00:11]} Rfe8 {[%emt 0:01:33]} 16. Rhd1 {[%emt 0:00:06]} c5 {[%emt 0:02:13]} 17. Ra3 {[%emt 0:00:04]} Qc7 {[%emt 0:00:28]} 18. Nxf7 {[%emt 0:00:49]} Qxf4 {[%emt 0:00:16]} 19. Nxd8 {[%emt 0:00:05]} Bxd8 {[%emt 0:00:08]} 20. Rxa7 {[%emt 0:00:08]} Qb8 {[%emt 0:04:47]} 21. Ra4 {[%emt 0:02:33]} cxd4 {[%emt 0:16:07]} 22. Raxd4 {[%emt 0:00:37]} Nc5 {[%emt 0:00:48]} 23. Nh5 {[%emt 0:07:19]} b6 {[%emt 0:05:28]} 24. Qb5 {[%emt 0:08:08]} Rf8 {[%emt 0:06:46]} 25. Nf4 {[%emt 0:14:15]} e5 {[%emt 0:12:26]} 26. Rb4 {[%emt 0:05:09]} exf4 {[%emt 0:02:01]} 27. Qxc5 {[%emt 0:00:23]} Qb7 {[%emt 0:05:15]} 28. f3 {[%emt 0:02:53]} Qf7 {[%emt 0:08:07]} 29. Qc4 {[%emt 0:04:23]} Bc7 {[%emt 0:00:17]} 30. a4 {[%emt 0:08:39]} Re8 {[%emt 0:02:58]} 31. Qxf7+ {[%emt 0:01:26]} Kxf7 {[%emt 0:00:03]} 32. Rc4 {[%emt 0:00:35]} Re7 {[%emt 0:02:27]} 33. Rc6 {[%emt 0:01:27]} Kg6 {[%emt 0:02:27]} 34. c4 {[%emt 0:02:24]} Kh5 {[%emt 0:02:23]} 35. c5 {[%emt 0:04:55]} bxc5 {[%emt 0:05:24]} 36. Rxc5+ {[%emt 0:00:04]} g5 {[%emt 0:00:50]} 37. hxg5 {[%emt 0:00:24]} hxg5 {[%emt 0:00:09]} 38. a5 {[%emt 0:01:46]} Bb8 {[%emt 0:04:49]} 39. Rd8 {[%emt 0:12:17]} Ba7 {[%emt 0:00:14]} 40. Rc6 {[%emt 0:00:30]} Ne8 {[%emt 0:07:46]} 41. b4 {[%emt 0:31:17]} Kh4 {[%emt 0:31:46]} 42. b5 {[%emt 0:01:29]} Bf2 {[%emt 0:03:23]} 43. b6 {[%emt 0:01:12]} Re5 {[%emt 0:00:24]} 44. Rc2 {[%emt 0:00:47]} Rxa5 {[%emt 0:00:00]} 45. Rxf2 {[%emt 0:00:00]} Rb5+ {[%emt 0:00:00]} 46. Rb2 {[%emt 0:00:00]} 1-0

[Event "51st Rilton Cup 2023-24"]
[Site "Stockholm"]
[Date "2024.01.02"]
[Round "6.7"]
[White "Olsson, William"]
[Black "Parkhov, Yair"]
[Result "0-1"]
[ECO "E11"]
[WhiteElo "2379"]
[BlackElo "2495"]
[Annotator "TA"]
[PlyCount "94"]
[EventDate "2023.12.27"]
[EventType "swiss"]
[EventCountry "SWE"]
[SourceTitle "playchess.com"]
[Source "ChessBase"]
[SourceQuality "1"]
[TimeControl "40/5400+30:1800+30"]

{[%evp 11,94,14,14,4,25,0,22,-15,-10,-18,-14,-12,-9,-9,-3,-21,-1,0,0,-70,-20,-74,-85,-60,-56,-121,-137,-328,-194,-196,-180,-195,-210,-232,-212,-271,-271,-290,-308,-408,-417,-423,-405,-373,-423,-390,-423,-409,-386,-542,-540,-602,-488,-446,-387,-403,-391,-394,-392,-661,-640,-772,-753,-755,-629,-1168,-1160,-921,-921,-1450,-1436,-1416,-1339,-29976,-29979,-29980,-29981,-29980,-29981,-29987,-29988,-29985,-29986,-29992,-29992]} 1. d4 {[%emt 0:00:03]} Nf6 {[%emt 0:00:27]} 2. c4 {[%emt 0:00:10]} e6 {[%emt 0:00:06]} 3. g3 {[%emt 0:00:09]} Bb4+ {[%emt 0:01:01]} 4. Bd2 {[%emt 0:00:22]} Be7 {[%emt 0:00:32]} 5. Bg2 {[%emt 0:00:09]} d5 {[%emt 0:00:04]} 6. Nf3 {[%emt 0:00:05]} O-O {[%emt 0:00:06]} 7. Qc2 {[%emt 0:00:40]} a5 {[%emt 0:00:57]} 8. h4 {[%emt 0:03:01]} c5 {[%emt 0:05:57]} 9. O-O {[%emt 0:11:37] The position is equal.} cxd4 {[%emt 0:08:19]} 10. Nxd4 {[%emt 0:00:50]} Nc6 {[%emt 0:00:20]} 11. Bc3 {[%emt 0:06:59]} Nb4 {[%emt 0:08:18]} ({Don't play} 11... dxc4 12. Bxc6 (12. Nxc6 bxc6 13. Na3 Ba6 $11) 12... bxc6 13. Nxc6 $14) 12. Bxb4 {[%emt 0:00:41]} axb4 {[%emt 0:00:22]} 13. Nd2 {[%emt 0:08:37]} Qb6 {[%emt 0:18:54]} 14. e3 {[%emt 0:03:59]} Bd7 {[%emt 0:00:35]} 15. N4f3 {[%emt 0:04:08]} (15. Rfc1 $11) 15... Rfd8 {[%emt 0:02:07] Black is more active.} ({Black should play} 15... Rac8 $15 16. b3 dxc4 17. bxc4 Qc7) 16. Ne5 {[%emt 0:07:22]} (16. cxd5 $11 {keeps the balance.} Rdc8 17. Qb1 (17. Nc4 $2 Qa6 $19)) 16... Ba4 $17 {[%emt 0:01:53]} 17. b3 {[%emt 0:02:58]} Be8 {[%emt 0:00:55]} 18. cxd5 {[%emt 0:01:38]} ({Better is} 18. Rfc1 $15) 18... Nxd5 {[%emt 0:03:17]} 19. e4 {[%emt 0:02:11] This move loses the game for White.} (19. Bxd5 $17 Rxd5 20. Nef3) 19... Nc3 {[%emt 0:06:01]} (19... Ne3 $142 20. fxe3 Qxe3+ 21. Rf2 Qd4) 20. Nec4 $19 {[%emt 0:10:01]} Qd4 {[%emt 0:07:35]} 21. e5 {[%emt 0:00:47] [#]} b5 $1 {[%emt 0:04:37]} 22. Nf3 {[%emt 0:02:03] [#]} (22. Nd6 Bxd6) 22... Qc5 {[%emt 0:01:44]} 23. Ne3 {[%emt 0:03:51]} h6 {[%emt 0:02:36]} ({Don't blunder} 23... Bc6 $2 24. Ng5 Bxg5 25. hxg5 $19) 24. Rfc1 {[%emt 0:03:12]} Bc6 {[%emt 0:01:55]} 25. Qb2 {[%emt 0:05:58]} Rd3 {[%emt 0:03:26]} 26. Kh2 {[%emt 0:02:19]} Bxf3 {[%emt 0:04:47]} 27. Bxf3 {[%emt 0:00:05]} Rad8 {[%emt 0:00:04][%cal Od3d2] aiming for ...Rd2!} 28. Rc2 {[%emt 0:02:11] Repels Rd2} Qxe5 {[%emt 0:00:51]} 29. Re1 {[%emt 0:00:41]} Bc5 {[%emt 0:05:01] White is weak on the dark squares} (29... Bxh4 $2 {too greedy.} 30. Ng2 Qd4 31. Nxh4 $19) 30. Ng2 {[%emt 0:01:44]} (30. Qc1 {was necessary.}) 30... Qb8 {[%emt 0:01:23]} 31. Bc6 {[%emt 0:01:06]} Qb6 {[%emt 0:02:42]} 32. Be4 {[%emt 0:00:59]} Rd1 {[%emt 0:01:07] Hoping for ...Rxe1.} 33. Bf3 {[%emt 0:00:15]} Rxe1 {[%emt 0:01:01]} 34. Nxe1 {[%emt 0:00:07]} e5 {[%emt 0:01:15][%cal Be6e5,Be5e4,Be4e3][%mdl 32] White must now prevent ...e4.} 35. Kg2 $2 {[%emt 0:03:14]} (35. Rd2 Rxd2 36. Qxd2) 35... e4 {[%emt 0:02:30]} 36. Bg4 {[%emt 0:00:03]} Qg6 {[%emt 0:01:04]} 37. Be2 {[%emt 0:00:33]} e3 {[%emt 0:00:56]} 38. f4 {[%emt 0:01:06]} Ne4 {[%emt 0:01:50]} 39. g4 {[%emt 0:00:21]} Nc3 {[%emt 0:00:11] ( -> ...Nxe2)} 40. Bf3 {[%emt 0:01:52]} Qf6 {[%emt 0:00:29][%csl LRf4,LRh4]} 41. Kg3 {[%emt 0:31:44]} g5 {[%emt 0:30:50]} 42. hxg5 {[%emt 0:02:13]} hxg5 {[%emt 0:00:06] Black mates.} 43. fxg5 {[%emt 0:00:25]} Bd6+ {[%emt 0:01:19]} 44. Kg2 {[%emt 0:00:07]} Qf4 {[%emt 0:00:10]} 45. g6 {[%emt 0:04:09]} Be5 {[%emt 0:00:36]} 46. gxf7+ {[%emt 0:00:40]} Kg7 {[%emt 0:00:39]} 47. a3 {[%emt 0:04:12]} Rd2+ {[%emt 0:01:14] Excellently played by Parkhov!   Weighted Error Value: White=0.76/Black=0.16 (very precise)} 0-1

[Event "51st Rilton Cup 2023-24"]
[Site "Stockholm"]
[Date "2024.01.02"]
[Round "6.8"]
[White "Gorshtein, Ido"]
[Black "Dhulipalla Bala Chandra Prasad"]
[Result "1/2-1/2"]
[ECO "D16"]
[WhiteElo "2523"]
[BlackElo "2396"]
[Annotator "TA"]
[PlyCount "67"]
[EventDate "2023.12.27"]
[EventType "swiss"]
[EventCountry "SWE"]
[SourceTitle "playchess.com"]
[Source "ChessBase"]
[SourceQuality "1"]
[TimeControl "40/5400+30:1800+30"]

{[%evp 16,67,22,23,21,11,18,0,0,0,0,-1,11,10,41,25,33,-20,0,-40,-14,-31,0,-18,-29,-31,0,-42,-18,-9,-6,0,0,-57,-58,-137,0,-91,-97,-93,-89,-93,-97,-104,22,29,152,0,0,0,119,0,0,0]} 1. d4 {[%emt 0:00:30]} d5 {[%emt 0:05:22]} 2. c4 {[%emt 0:00:00]} c6 {[%emt 0:00:03]} 3. Nf3 {[%emt 0:00:00]} Nf6 {[%emt 0:00:04]} 4. Nc3 {[%emt 0:00:02]} dxc4 {[%emt 0:00:46]} 5. a4 {[%emt 0:00:08]} e6 {[%emt 0:00:56]} 6. e3 {[%emt 0:00:36]} c5 {[%emt 0:00:30]} 7. Bxc4 {[%emt 0:00:10]} Nc6 {[%emt 0:00:47]} 8. O-O {[%emt 0:00:31]} cxd4 {[%emt 0:01:28]} 9. exd4 {[%emt 0:00:19]} Be7 {[%emt 0:01:40] D16: Slav Defence: 5 a4: Lines with 5...Bg4 and 5...Na6.} 10. Bg5 {[%emt 0:05:02]} O-O {[%emt 0:02:48]} 11. Re1 {[%emt 0:00:11] 11.Re1 is better than 11.Qd2.} h6 {[%emt 0:02:08]} 12. Be3 {[%emt 0:08:22]} Nd5 {[%emt 0:05:50]} 13. Qe2 {[%emt 0:02:17] [#]} Bf6 $146 {[%emt 0:13:14]} ({Predecessor:} 13... Ncb4 14. a5 Bf6 15. Ne4 Bd7 16. Nxf6+ Qxf6 17. Ne5 Bc6 18. Qd2 Rfd8 19. Ra3 Nxe3 20. Raxe3 {½-½ Nenezic,M (2528)-Gagunashvili,M (2552) SRB-chT Premier 2022 (6.5)}) 14. Rad1 {[%emt 0:02:15]} b6 {[%emt 0:05:47]} 15. Bc1 {[%emt 0:12:19]} Bb7 {[%emt 0:05:55]} 16. Ba2 {[%emt 0:02:19]} (16. Ne5 $14) 16... Nce7 $11 {[%emt 0:03:51]} 17. Bb1 {[%emt 0:11:43][%cal Oa4a5]} Rc8 {[%emt 0:09:24]} 18. Ne4 {[%emt 0:10:32]} Ng6 {[%emt 0:03:06]} 19. g3 {[%emt 0:01:25]} Re8 {[%emt 0:05:03]} 20. Bd2 {[%emt 0:04:09]} Re7 {[%emt 0:06:06]} 21. Qd3 {[%emt 0:02:29]} Rec7 {[%emt 0:03:31]} 22. a5 {[%emt 0:00:46]} Be7 {[%emt 0:04:59] White should prevent ...f5.} 23. Ne5 {[%emt 0:02:31]} Nf8 {[%emt 0:00:12]} 24. a6 {[%emt 0:02:25]} ({Don't go for} 24. Qf3 $2 f6 25. a6 (25. axb6 $2 axb6 26. Qg4 fxe5 $19) 25... Ba8 $19) (24. axb6 $11 Nxb6 25. Nc3) 24... Ba8 $1 $15 {[%emt 0:00:31]} 25. Qe2 {[%emt 0:07:13]} ({But not} 25. Qf3 $2 f5 26. Qh5 fxe4 $19) ({Better is} 25. Nc3 $15) 25... Bb4 {[%emt 0:04:05]} ({Black should play} 25... f6 $17 26. Nd3 f5) 26. Qh5 {[%emt 0:08:59]} (26. Bxb4 $1 $11 Nxb4 27. Nc3) 26... Bxd2 $17 {[%emt 0:00:30]} 27. Nxd2 {[%emt 0:01:36]} Nb4 {[%emt 0:02:42][%csl LRa6,LRd4]} 28. Ne4 {[%emt 0:04:01]} Nxa6 {[%emt 0:00:58]} 29. d5 {[%emt 0:00:41]} exd5 {[%emt 0:05:06]} ({Black should try} 29... Bxd5 $17 {Strongly threatening ...Qe7.} 30. Nc3 Nb4) 30. Ng4 $11 {[%emt 0:00:02][%cal Oe4f6] [#] Nef6+! would be deadly.} Rc6 {[%emt 0:03:06] Dodges Nef6+} (30... dxe4 $11 31. Rxd8 Rxd8) 31. Ne5 {[%emt 0:03:41][%mdl 1024] White has strong compensation. White has more active pieces.} R6c7 {[%emt 0:00:01]} 32. Ng4 {[%emt 0:00:12][%cal Oe4f6] Hoping for Nef6+!} Rc6 {[%emt 0:01:38] Against Nef6+} 33. Ne5 {[%emt 0:01:47]} ({White must play} 33. Rxd5 $16 Rc1 34. Rdd1 (34. Nef6+ $2 Kh8 $19) 34... Rxd1 35. Nxh6+ gxh6 36. Rxd1) 33... R6c7 {[%emt 0:02:04]} 34. Ng4 {[%emt 0:00:07] Weighted Error Value: White=0.32/Black=0.25 (precise)} 1/2-1/2